Cogmind - Beta 15 @@@ ROGUE MODE // 2025.07.18 @ 13:35:12 Player: carterz30cal Result: Self-destructed Performance ------------- Evolutions (1) 500 Regions Visited (2) 400 Robots Destroyed (22) 110 Value Destroyed (508) 508 Prototype IDs (0) 0 Alien Tech Used (0) 0 Bonus (0) 0 TOTAL SCORE: 1518 Bonus ------- None Cogmind --------- Core Integrity 333/400 Matter 294/300 Energy 95/100 System Corruption 5% Temperature Cool (0) Movement Core (250) Ox4 Location -9/Materials Parts ------- > --- POWER (1) -------- (None) > --- PROPULSION (2) --- (None) > --- UTILITY (4) ------ Small Storage Unit Signal Interpreter > --- WEAPON (2) ------- EMP Blaster EMP Blaster > --- INVENTORY (8) ---- Heat Sink EMP Blaster EMP Blaster EMP Blaster EMP Blaster EMP Blaster Grenade Launcher Peak State ------------ > --- POWER ------------ Light Nuclear Core > --- PROPULSION ------- Aluminum Leg Aluminum Leg > --- UTILITY ---------- Cooling System Small Storage Unit Signal Interpreter > --- WEAPON ----------- Assault Rifle Light Assault Rifle > --- INVENTORY -------- Light Ion Engine Aluminum Leg Heat Sink Grenade Launcher [Rating: 11] Favorites ----------- Power Ion Engine Engine Ion Engine Power Core Light Nuclear Core Propulsion Aluminum Leg Leg Aluminum Leg Utility Signal Interpreter Device Cooling System Storage Small Storage Unit Processor Signal Interpreter Weapon Light Assault Rifle Energy Gun Medium Laser Ballistic Gun Light Assault Rifle Launcher EMP Blaster Build | -11 -10 -9 ------- Run | Yrd Mat Mat Slots Evolved 2 | . . 2 Power . | . . . Propulsion . | . . . Utility 2 | . . 2 Weapon . | . . . Parts Attached 19 | 6 9 4 Power 3 | 1 2 . Engine 2 | 1 1 . Core 1 | . 1 . Reactor . | . . . Propulsion 6 | 2 3 1 Treads . | . . . Leg 6 | 2 3 1 Wheel . | . . . Hover . | . . . Flight . | . . . Utility 5 | 1 3 1 Device 2 | . 1 1 Storage 2 | 1 1 . Processor 1 | . 1 . Hackware . | . . . Protection . | . . . Artifact . | . . . Weapon 5 | 2 1 2 Energy Gun 1 | 1 . . Energy Cannon . | . . . Ballistic Gun 2 | 1 1 . Ballistic Cannon . | . . . Launcher 2 | . . 2 Special Weapon . | . . . Impact Weapon . | . . . Slashing Weapon . | . . . Piercing Weapon . | . . . Special Melee Weapon . | . . . Unidentified Prototypes . | . . . Parts Lost 9 | . 3 6 Power 3 | . 1 2 Propulsion 4 | . 1 3 Utility 1 | . 1 . Weapon 1 | . . 1 Highest Loss Streak 4 | . 2 4 To Critical Strikes . | . . . Average Backups 4 | . 4 5 Power . | . . . Propulsion . | . . . Utility 1 | . 1 1 Weapon 1 | . . 3 Tool/Special . | . . . Unused Backups 7 | . . 7 Power . | . . . Propulsion . | . . . Utility 1 | . . 1 Weapon 6 | . . 6 Tool/Special . | . . . Average Slot Usage (%) 91 | . 96 76 Engine 11 | . 13 4 Core 1 | . . 4 Leg 24 | . 27 14 Device 4 | . 2 10 Storage 14 | . 15 11 Processor 7 | . 6 11 Energy Gun 4 | . 6 . Ballistic Gun 18 | . 21 8 Launcher 3 | . . 12 Peak Build Rating 11 | 6 9 11 Average Rating 7 | 4 6 10 On Entrance 5 | . 6 9 Naked Turns . | . . . Heaviest Build 18 | 13 14 18 Greatest Support 20 | 20 20 20 Greatest Overweight (x) 4 | . . 4 Average Overweight (x) . | . . . Largest Inventory Capacity 8 | 8 8 8 Average Capacity 6 | 6 6 8 Most Carried 8 | 1 5 8 Average Carried 4 | . 4 5 Final Capacity 8 | 8 8 8 Final Carried 7 | 1 4 7 Class Distribution -------------------- 100% | Mutant Dominant Class ---------------- Mutant | -10/Materials Mutant | -9/Materials Resources | -11 -10 -9 ----------- Run | Yrd Mat Mat Matter Collected 656 | 172 399 85 Remotely . | . . . Salvage Created 736 | . 456 280 Parts 47 | . 33 14 Haulers Intercepted 1 | . 1 . Recyclers Shooed 1 | . . 1 Parts Field Recycled . | . . . Retrieved Matter . | . . . Parts Self-Destructed . | . . . Prevented . | . . . Kills | -11 -10 -9 ------- Run | Yrd Mat Mat Combat Hostiles Destroyed 19 | . 13 6 Guns 17 | . 13 4 AOE 2 | . . 2 Classes Destroyed 5 | . 4 1 Worker 2 | . 2 . Hauler 1 | . 1 . Swarmer 9 | . 6 3 Grunt 9 | . 7 2 Sentry 1 | . . 1 Best Kill Streak 5 | . 5 4 Combat Bots Only 4 | . 4 4 Max Kills in Single Turn 1 | . 1 1 Gunslinging . | . . . Exploded 1 | . . 1 Melee . | . . . Uniques/NPCs Destroyed . | . . . Combat | -11 -10 -9 -------- Run | Yrd Mat Mat Hostile Shots Fired 135 | . 86 49 Missed 43 | . 29 14 Hits 92 | . 57 35 Melee 3 | . . 3 Projectile 89 | . 57 32 Critical Strikes 2 | . . 2 Damage Taken 1076 | . 579 497 Core 148 | . 81 67 Absorbed by Shields . | . . . Regen/Repaired (Parts) 74 | . 74 . Core Remaining (%) 83 | 100 67 . Volleys Fired 74 | . 54 20 Largest 2 | . 2 2 Hottest 70 | . 70 66 Shots Fired 137 | . 108 29 Gun 129 | . 108 21 Cannon . | . . . Launcher 8 | . . 8 Special . | . . . Kinetic 119 | . 98 21 Thermal 10 | . 10 . Explosive . | . . . Electromagnetic 8 | . . 8 Robot Hit Streak 8 | . 8 4 Robot Miss Streak 5 | . 5 3 Penetration Max . | . . . Secondary Targets 4 | . 4 . Max Gunslinging Chain 1 | . 1 . Shots Hit Robots 72 | . 58 14 Core Hits 40 | . 27 13 Critical Kills . | . . . Critical Parts Destroyed . | . . . Critical Strikes . | . . . Melee Attacks . | . . . Impact . | . . . Slashing . | . . . Piercing . | . . . Sneak Attacks . | . . . Combat Hostiles . | . . . Follow-up Attacks . | . . . Damage Inflicted 1151 | . 659 492 Guns 771 | . 659 112 Cannons . | . . . Explosions 377 | . . 377 Melee . | . . . Ramming 3 | . . 3 Kinetic 671 | . 559 112 Thermal 100 | . 100 . Explosive 214 | . . 214 Electromagnetic 163 | . . 163 Impact . | . . . Slashing . | . . . Piercing . | . . . Highest Corruption 5 | . . 5 Average Corruption 5 | . . 5 Corruption Purged . | . . . Corruption Blocked . | . . . Effects 1 | . . 1 Parts Rejected 1 | . . 1 Overload Shots . | . . . Overflow Damage 39 | . . 39 Projectiles . | . . . Explosions 39 | . . 39 Melee . | . . . Knockbacks . | . . . Impact . | . . . Kinetic . | . . . Secondary . | . . . Self-Inflicted Damage 110 | . . 110 Shots 2 | . . 2 Rammed 2 | . . 2 Targets Rammed 2 | . . 2 Kicked . | . . . Crushed . | . . . Highest Temperature 114 | . 114 . Average Temperature 34 | . 34 . Received Heat Transfer 285 | . 195 90 Siege Activations . | . . . Martial Activations . | . . . Shielding Activations . | . . . Robots Disrupted . | . . . Combat Hostiles . | . . . Robots Corrupted . | . . . Combat Hostiles . | . . . Parts Fried . | . . . Impact Corruptions . | . . . Robots Melted . | . . . Combat Hostiles . | . . . Parts Melted 2 | . 2 . Heat Transferred 296 | . 296 . Parts Sabotaged . | . . . Parts Stolen . | . . . Parts Stripped . | . . . Power Chain Reactions . | . . . Alert | -11 -10 -9 ------- Run | Yrd Mat Mat Maximum Alert Level . | . . . Low Security (%) 100 | 100 100 100 Level 1 . | . . . Level 2 . | . . . Level 3 . | . . . Level 4 . | . . . Level 5 . | . . . High Security . | . . . Max Security . | . . . Peak Influence 149 | . 95 149 Initial 24 | . . 24 Average 34 | . 31 48 Influence Increases 631 | . 342 289 Destroy 0b10 Robot/C 380 | . 260 120 Destroy 0b10 Robot/NC 15 | . 15 . Destroy Leader 82 | . 52 30 Disable Machine 75 | . . 75 Destroy Structure 34 | . . 34 Lose Combat Pursuer 45 | . 15 30 Influence Decreases 502 | . 283 219 Entered New Map 35 | . . 35 Time Decay 387 | . 253 134 Lost Part 80 | . 30 50 Squads Dispatched 4 | . 3 1 Investigation 1 | . 1 . Extermination . | . . . Reinforcement 3 | . 2 1 Assault . | . . . Garrison . | . . . Intercept . | . . . Searches Triggered . | . . . Construction Impeded . | . . . Haulers Reinforced . | . . . Active Scanning Responses . | . . . Cargo Convoy Interrupts . | . . . Stealth | -11 -10 -9 --------- Run | Yrd Mat Mat Distress Signals 2 | . 1 1 Communications Jammed . | . . . Distress Signals . | . . . Times Spotted 34 | . 21 13 Peak Tracking Total 5 | . 5 5 Tactical Retreats 3 | . 1 2 Traps | -11 -10 -9 ------- Run | Yrd Mat Mat Traps Triggered 1 | . 1 . Indirectly . | . . . Trap Hack Attempts . | . . . Triggered . | . . . Disarmed . | . . . Reprogrammed . | . . . Reused . | . . . Traps Extracted . | . . . Installed . | . . . Triggered . | . . . Machines | -11 -10 -9 ---------- Run | Yrd Mat Mat Machines Disabled 5 | . . 5 Max in Single Turn 2 | . . 2 Machines Repaired . | . . . Machines Dismantled . | . . . Machines Sabotaged . | . . . Overloaded Fab Kills . | . . . Hacking | -11 -10 -9 --------- Run | Yrd Mat Mat Machines Accessed 4 | . 2 2 Terminals 1 | . . 1 Fabricators . | . . . Repair Stations 1 | . 1 . Recycling Units 2 | . 1 1 Scanalyzers . | . . . Garrison Access . | . . . Total Hacks 12 | . 5 7 Successful 7 | . 4 3 Failed 5 | . 1 4 Catastrophic . | . . . Database Lockouts . | . . . Manual 2 | . . 2 Terminals 3 | . . 3 Fabricators . | . . . Repair Stations 2 | . 2 . Recycling Units 7 | . 3 4 Scanalyzers . | . . . Garrison Access . | . . . Terminal Hacks 1 | . . 1 Alert Level 1 | . . 1 Fabricator Hacks . | . . . Repair Station Hacks 2 | . 2 . Scan Component 1 | . 1 . Repair 1 | . 1 . Recycling Unit Hacks 2 | . 2 . Report Inventory 1 | . 1 . Retrieve Matter 1 | . 1 . Scanalyzer . | . . . Garrison Access Hacks . | . . . Unauthorized Hacks 2 | . . 2 Terminals . | . . . Fabricators . | . . . Repair Stations . | . . . Recycling Units 2 | . . 2 Reject 1 | . . 1 Mask 1 | . . 1 Scanalyzers . | . . . Garrison Access . | . . . Data Cores Recovered . | . . . Used . | . . . Hacking Detections 3 | . 2 1 Full Trace Events . | . . . Feedback Events . | . . . Feedback Blocked . | . . . Robot Schematics Acquired . | . . . Robots Built . | . . . Authchips . | . . . Time . | . . . Total Robot Build Rating . | . . . Part Schematics Acquired . | . . . Parts Built . | . . . Authchips . | . . . Time . | . . . Total Part Build Rating . | . . . Parts Repaired 1 | . 1 . Time 26 | . 26 . Parts Recycled . | . . . Recycled Matter . | . . . Retrieved Matter . | . . . Retrieved Components . | . . . Parts Scanalyzed . | . . . Part Schematics Acquired . | . . . Parts Damaged . | . . . Bothacking | -11 -10 -9 ------------ Run | Yrd Mat Mat Used RIF Installer . | . . . Robots Hacked . | . . . Non-combat . | . . . Combat . | . . . Robot Hacks Applied . | . . . Relay Couplers Released . | . . . Fabnet Peak Effective % . | . . . Robots Rewired . | . . . Allies Hacked . | . . . Hacks Repelled . | . . . Allies | -11 -10 -9 -------- Run | Yrd Mat Mat Total Allies . | . . . Largest Group . | . . . Highest-Rated Group . | . . . Highest-Rated Ally . | . . . Total Orders . | . . . Ally Attacks . | . . . Total Damage . | . . . Kills . | . . . Allies Corrupted . | . . . Allies Melted . | . . . Intel | -11 -10 -9 ------- Run | Yrd Mat Mat Active Infowar (turns) 196 | . 196 . Terrain 196 | . 196 . Robot Analysis Total . | . . . Derelict Logs Recovered . | . . . Drone Launches . | . . . Drone Recoveries . | . . . Exploration | -11 -10 -9 ------------- Run | Yrd Mat Mat Turns Passed 1377 | 73 979 325 Spaces Moved 792 | 57 570 165 Core 8 | 6 . 2 Treads . | . . . Legs 784 | 51 570 163 Wheels . | . . . Hover . | . . . Flight . | . . . Fastest Speed 50 | 50 120 120 Average Speed 126 | 112 120 153 Slowest Speed 250 | 120 120 250 Overloaded Moves . | . . . Propulsion Burnouts . | . . . Robots Hopped . | . . . Potential Cave-ins . | . . . Cave-ins Triggered . | . . . Exploration Rate (%) 26 | 3 66 11 Regions Visited 2 Branch Regions . Pre-discovered Areas . | . . . Known Exits Taken 1 | . 1 . Unknown Exits Taken 1 | 1 . . Scrap Searched . | . . . Spaces Dug . | . . . Terrain Destroyed 41 | . . 41 Melee . | . . . Projectile . | . . . AOE 41 | . . 41 Terrain Rammed . | . . . Walls Destroyed . | . . . Machines Disabled . | . . . Actions | -11 -10 -9 --------- Run | Yrd Mat Mat Total 1037 | 63 768 206 Wait 131 | . 123 8 Move 790 | 56 569 165 Hop . | . . . Pick Up 11 | 1 5 5 Fast Attach 13 | 6 4 3 Attach 5 | . 3 2 Detach . | . . . Swap 5 | . 5 . Drop 6 | . 5 1 Fire 74 | . 54 20 Melee . | . . . Ram 2 | . . 2 Kick . | . . . Crush . | . . . Escape Stasis . | . . . Rewire . | . . . Trap . | . . . Miscellaneous . | . . . Route ------- -11/Scrapyard -10/Materials (discovered 2 exits: *Mat x2) -9/Materials History --------- Turn | Location | Event 2 | -11/Scrapyard | Met Revision 17 4 | -11/Scrapyard | Discovered new exit (range 15) 74 | -11/Scrapyard | Entered Materials 301 | -10/Materials | Build established: Mutant 550 | -10/Materials | Discovered new exit (range 7) 591 | -10/Materials | Identified exit to Materials 794 | -10/Materials | Discovered exit to Materials (range 16) 893 | -10/Materials | Repaired Lgt. Assault Rifle 1053 | -10/Materials | Entered another Materials area 1053 | -9/Materials | Evolved 2 slots: Utility x2 1205 | -9/Materials | Lost 4 parts (1p2n1w) 1378 | -9/Materials | Self-destructed Last Messages --------------- 01333_ K-01 Serf collects debris. 01337_ U-05 Engineer lays Concrete. 01342_ K-01 Serf collects debris. 01364_ Nuclear Reactor explodes. 01364_ G-34 Mercenary destroyed. 01364_ Aluminum Leg destroyed. 01364_ Destroyed Aluminum Leg. 01364_ Terminal disabled. 01364_ Door malfunctions. 01367_ Slammed into B-36 Bruiser. 01368_ Lgt. Ion Engine destroyed. 01368_ System corrupted by crushing effect (+5). 01370_ Slammed into B-36 Bruiser. 01370_ Destabilizing: System interference. 01370_ Cooling System temporarily disabled. 01370_ Signal Interpreter temporarily disabled. 01373_ The unstable cave ceiling collapses. 01376_ System corrupted: Cooling System rejected. 01378_ U-05 Engineer repairs door. Map ----- +----------------------------------------------------+ | ?# # #????????????????????? | | ?# # #????????????????????? | | ?# [ # #????????????????????? | | ?# # #????????????????????? | | ?# +% #????????????????????? | | ?# %#% #????????????????????? | | ?# = # #????????????????????? | | ##= # ##############???????? | | # *!"""" # # #???????? | | ########### # ! ######### | | ??????????# # ## # | | ??????????# # ## ""# | | ??????????# # ## [[Y"# | | ??????????# # ## =!""# | | ??????????# %###/#######+### =!=[ # | | ??????????# u # """ # | | ??????????# + """ # | | ??????????# "% %% # """ # | | ??????????# "" %% # # | | ??????????# ""%% % # """ # | | ??????????# ""%%%%% / """ # | | ?????????## """""%" # """ # | | ?????????# # # | | ?????????# ###? | | ?????????# # #??? | | ?????????# # #@%! #??? | | ?????????# # = #??? | | ?????????############## b #??? | | ??????????????????????# #??? | | ??????????????????????# #?? | | ??????????????????????# ! ##?? | | ??????????????????????# #??? | | ??????????????????????###### ####??? | | ????????????????????????????##?????? | | ???????????????????????????????????? | | ???????????????????????????????????? | | ???????????????????????????????????? | | ???????????????????????????????????? | | ???????????????????????????????????? | | ???????????????????????????????????? | | ???????????????????????????????????? | | ???????????????????????????????????? | | ???????????????????????????????????? | | ???????????????????????????????????? | | ???????????????????????????????????? | | ???????????????????????????????????? | | ???????????????????????????????????? | | ???????????????????????????????????? | | ???????????????????????????????????? | | ???????????????????????????????????? | +----------------------------------------------------+ Best States ------------- Heat Dissipation 50 Energy Generation 14 Energy Capacity 250 Matter Stores 350 Matter Capacity 350 Sight Range 16 Terrain Scan Range 14 Terrain Scan Density 10 Evasion (%) 55 Item Schematics ----------------- None Robot Schematics ------------------ None Fabricated ------------ Nothing Repaired ---------- Lgt. Assault Rifle | 7% | -10/Materials Alien Tech Used ----------------- None Achievements -------------- None Challenges ------------ None Game ------ Seed AutogunCorePenetrator Manual? 0 Play Time 00:15:53 Cumulative 14.3 hours Start 2025.07.18 @ 13:09:59 End 2025.07.18 @ 13:35:12 Sessions 1 Manual Loads 0 Difficulty Rogue Special Mode None Game No. 27 Rogue 27 Adventurer 0 Explorer 0 Win Type - Total 0 Types 0/0/0/0/0/0/0/0/0/0 Lore% 7 Gallery% 15 Achievement% 18 Wizard Run 0 Options --------- Layout 1 ASCII 0 Keyboard 0 Movement Arrows Keybinds 0 Fullscreen 1 Font 24/Smallcaps Map View 50x35 Zoom Use 0% Tactical HUD 1 Map Filters NONE Filters NONE Steam 1 RUN: a3ab43ea-332b-4860-8312-be838b1c33f5